bitfinex/quotes_ETHUSD_20250414
["timestamp","ask_amount","ask_price","bid_price","bid_amount"]
[1744647964223,6.14794,1626.6,1626.3,0.7741]
[1744647964554,6.14916,1626.3,1625.9,6.95819]
[1744647964763,4.2e-06,1626.6,1626.0,10.14992]
[1744647964926,4.2e-06,1626.6,1626.5,6.14817]
[1744647965235,4.2e-06,1626.6,1626.4,6.14837]
[1744647965860,4.2e-06,1626.6,1626.3,6.14885]
[1744647966029,6.14833,1626.5,1626.2,6.14917]
[1744647966223,6.14833,1626.5,1626.2,12.29835]
[1744647966523,4.2e-06,1626.6,1626.4,6.14848]
[1744647966722,6.14832,1626.5,1626.1,6.95754]
[1744647966961,6.14817,1626.5,1626.1,6.95746]
[1744647967170,1.36675462,1626.6,1626.4,6.14834]
[1744647967475,4.2e-06,1626.6,1626.2,6.14927]
[1744647967626,4.2e-06,1626.8,1626.4,6.95767]
[1744647967834,6.1470442,1626.8,1626.5,6.14792]
[1744647968160,4.2e-06,1626.8,1626.5,6.14792]
[1744647968360,4.2e-06,1626.8,1626.5,6.14811]
[1744647968664,6.1470742,1626.8,1626.5,6.14805]
[1744647968834,6.14772,1626.7,1626.4,6.9579]
[1744647969030,6.14767,1626.7,1626.4,6.9579]
[1744647969235,1.22939762,1626.8,1626.3,6.14882]
[1744647969427,0.752,1626.6,1626.2,6.14917]
[1744647969763,6.14833,1626.5,1626.2,6.14917]
[1744647970070,7.453147,1626.5,1626.1,6.14956]
[1744647970247,7.4531512,1626.5,1626.2,6.14915]
[1744647970958,6.14893,1626.3,1626.0,12.29988]
[1744647971162,6.14893,1626.3,1626.0,6.14993]
[1744647971464,6.14868,1626.4,1626.1,6.14953]
[1744647971684,6.14868,1626.4,1626.0,6.14989]
[1744647971860,6.14868,1626.4,1626.1,6.14966]
[1744647972067,12.29741,1626.4,1626.1,6.14968]
[1744647972253,6.14868,1626.4,1626.1,6.14968]
[1744647972453,6.14893,1626.3,1626.0,12.29983]
[1744647972650,6.14868,1626.4,1626.1,6.14966]
[1744647972851,7.4530612,1626.5,1626.2,6.1493]
[1744647973056,7.4530612,1626.5,1626.1,6.14961]
[1744647973244,6.14855,1626.4,1626.1,6.14967]
[1744647973633,6.14903,1626.3,1626.0,6.15]
[1744647973831,7.4530812,1626.5,1626.0,6.15006]
[1744647974035,4.2e-06,1626.7,1626.4,6.14854]
[1744647974334,4.2e-06,1626.7,1626.6,6.14779]
[1744647974534,0.752,1627.0,1626.8,6.14703]
[1744647974535,4.2e-06,1626.9,1626.8,6.14703]
[1744647974745,4.2e-06,1626.9,1626.7,6.14723]
[1744647974967,4.2e-06,1626.9,1626.7,12.29452]
[1744647975140,4.2e-06,1626.9,1626.8,6.14703]
[1744647976640,4.2e-06,1626.9,1626.8,7.991179]
[1744647976973,4.2e-06,1626.9,1626.8,8.05264482]
[1744647977337,4.2e-06,1626.9,1626.8,7.991179]
[1744647978075,4.2e-06,1626.9,1626.8,6.14703]
[1744647978573,4.2e-06,1626.9,1626.8,6.20849532]
[1744647978775,0.7520042,1627.5,1627.3,6.14514]
[1744647978977,6.1448,1627.4,1627.1,12.29146]
[1744647979152,3.7520042,1627.5,1626.9,6.14665]
[1744647979344,6.14515,1627.3,1627.0,6.14604]
[1744647980245,6.14515,1627.3,1626.9,6.14659]
[1744647980448,6.14553,1627.2,1626.9,6.14659]
[1744647981060,6.89753,1627.2,1626.9,6.14659]
[1744647981255,0.752,1627.2,1627.0,6.14621]
[1744647981879,0.752,1627.2,1626.7,6.14737]
[1744647981880,1.441722,1627.2,1626.8,6.14693]
[1744647982082,6.14629,1627.0,1626.7,6.14731]
[1744647982279,6.8976342,1627.2,1626.6,6.1477]
[1744647982485,6.89893,1626.9,1626.6,6.14769]
[1744647982682,6.14715,1626.8,1626.5,6.14794]
[1744647982981,6.14792,1626.6,1626.3,6.14878]
[1744647983283,4.2e-06,1626.6,1626.4,6.1485]
[1744647983478,4.2e-06,1626.6,1626.5,6.14817]
[1744647983686,4.2e-06,1626.6,1626.4,6.14819]
[1744647984048,6.1479242,1626.6,1626.2,6.94165]
[1744647984250,0.752,1626.5,1625.9,0.89886518]
[1744647984449,12.29798,1626.3,1625.9,6.15033]
[1744647984657,6.14932,1626.2,1625.9,6.15033]
[1744647985060,7.37871842,1626.3,1625.9,6.15029]
[1744647985266,6.14892,1626.3,1626.0,6.15005]
[1744647985465,4.2e-06,1626.4,1626.0,6.15005]
[1744647985466,6.1485842,1626.4,1626.0,6.14976]
[1744647985678,6.1485842,1626.4,1626.0,12.2997]
[1744647985862,4.2e-06,1626.4,1625.8,6.1507]
[1744647986067,4.2e-06,1626.4,1626.0,6.15006]
[1744647986068,6.9011742,1626.3,1626.0,6.15006]
[1744647986384,13.0502842,1626.3,1625.9,6.15032]
[1744647986557,13.0502842,1626.3,1625.9,12.30062]
[1744647986758,8.20614262,1626.3,1625.9,12.30062]
[1744647986979,8.20614262,1626.3,1626.0,6.14997]
[1744647987211,6.14977,1626.1,1625.8,6.15079]
[1744647987704,12.29934,1626.2,1625.8,12.30133]
[1744647987906,0.7520042,1626.3,1626.0,6.14988]
[1744647988262,6.9009842,1626.3,1626.0,6.14988]
[1744647988662,13.0501342,1626.3,1626.0,6.14988]
[1744647988861,6.9009842,1626.3,1626.0,6.14988]
[1744647989296,0.7520042,1626.3,1626.1,6.14966]
[1744647989806,4.2e-06,1626.3,1626.1,6.14954]
[1744647990082,6.1490842,1626.3,1625.9,12.30067]
[1744647990385,6.14941,1626.2,1625.9,6.15029]
[1744647990601,6.14941,1626.2,1625.9,12.30059]
[1744647990778,4.2e-06,1626.3,1626.0,6.14973]
[1744647991161,6.1489842,1626.3,1626.0,6.14973]
[1744647991777,7.37875562,1626.3,1625.9,6.15032]
[1744647992258,7.37875562,1626.3,1625.9,12.30061]
[1744647992461,4.2e-06,1626.3,1626.1,6.14966]
[1744647992707,4.2e-06,1626.3,1626.1,6.14951]
[1744647992915,4.2e-06,1626.3,1626.2,6.1493]
[1744647994093,4.2e-06,1626.3,1626.1,6.1495]
[1744647994391,4.2e-06,1626.3,1626.2,6.1493]
[1744647994689,4.2e-06,1626.3,1626.1,6.1495]
[1744647994993,4.2e-06,1626.3,1626.2,6.1493]
[1744647996298,4.2e-06,1626.8,1626.3,6.89917]
[1744647996471,6.1471942,1626.8,1626.4,6.14818]
[1744647996658,6.1471942,1626.8,1626.3,0.7503]
[1744647996659,4.2e-06,1626.8,1626.5,6.14795]
[1744647997200,4.2e-06,1626.8,1626.7,6.14741]
[1744647997388,6.14631,1627.0,1626.7,12.29471]
[1744647997695,4.2e-06,1627.1,1626.9,6.14664]
[1744647997897,4.2e-06,1627.1,1626.8,6.14699]
[1744647998084,6.1463,1627.0,1626.7,6.95065]
[1744647998405,6.14683,1626.9,1626.6,6.14762]
[1744647998569,7.37552242,1627.0,1626.7,6.1474]
[1744647998764,13.52199242,1627.0,1626.6,6.14762]
[1744647998986,13.52199242,1627.0,1626.6,12.29529]
[1744647999191,0.752,1626.8,1626.3,0.8122]
[1744647999383,0.7520042,1626.8,1626.6,6.14777]
[1744647999597,8.2037502,1626.8,1626.5,6.14807]
[1744647999900,6.1478,1626.6,1626.3,12.29759]
[1744648000191,6.9007,1626.4,1626.0,14.39794]
[1744648000403,13.04949,1626.4,1626.0,20.54788]
[1744648000578,2.05694942,1626.4,1625.9,6.95643]
[1744648000778,6.14925,1626.3,1625.9,6.95643]
[1744648000978,6.14935,1626.2,1625.9,6.15029]
[1744648001217,6.14925,1626.3,1625.8,6.15081]
[1744648001503,6.90064,1626.4,1626.0,6.14979]
[1744648001863,6.14895,1626.3,1625.9,6.15032]
[1744648002068,0.690064,1626.3,1626.1,6.14951]
[1744648002297,0.752,1626.4,1626.0,6.14974]
[1744648002500,6.90066,1626.4,1626.1,6.14966]
[1744648002681,6.90066,1626.4,1625.8,6.15081]
[1744648003019,0.752,1626.4,1626.1,6.14968]
[1744648003169,6.90056,1626.4,1626.1,6.14968]
[1744648003365,6.90056,1626.4,1626.1,12.29925]
[1744648003567,6.90056,1626.4,1626.1,6.14957]
[1744648003799,6.90056,1626.4,1626.1,6.14954]
[1744648004240,8.50543642,1626.4,1626.0,11.14992]
[1744648004585,6.14898,1626.3,1626.0,5.0]
[1744648004779,8.50547642,1626.4,1626.0,11.15002]
[1744648004993,4.2e-06,1626.5,1626.4,6.14854]
[1744648005193,4.2e-06,1626.7,1626.1,10.26467726]
[1744648005399,4.2e-06,1626.7,1626.5,6.14788]
[1744648005795,0.752,1626.9,1626.7,6.1473]
[1744648005995,0.752,1626.9,1626.7,6.14727]
[1744648006386,6.89886,1626.9,1626.6,6.14775]
[1744648006589,6.14717,1626.8,1626.3,0.8301]
[1744648006789,4.2e-06,1626.7,1626.5,12.29606]
[1744648006984,4.2e-06,1626.7,1626.5,6.14803]
[1744648007490,4.2e-06,1626.7,1626.6,6.14779]
[1744648007703,6.1479,1626.6,1626.2,12.2982]
[1744648008015,6.14785,1626.6,1626.3,6.14884]
[1744648008224,6.14947,1626.2,1626.0,5.0]
[1744648008384,6.14968,1626.1,1626.0,5.0]
[1744648008786,6.1494742,1626.2,1626.0,5.0]
[1744648009109,4.2e-06,1626.2,1626.0,11.15005]
[1744648009418,4.2e-06,1626.2,1626.0,12.264885]
[1744648009600,4.2e-06,1626.2,1626.0,18.414835]
[1744648009801,4.2e-06,1626.2,1626.0,5.0]
[1744648010314,6.1493642,1626.2,1626.0,5.0]
[1744648010514,4.2e-06,1626.2,1626.1,6.14968]
[1744648010716,4.2e-06,1626.2,1626.0,11.14992]
[1744648011091,6.1494542,1626.2,1626.0,5.0]
[1744648011300,7.51662542,1626.1,1626.0,5.0]
[1744648011487,19.31562962,1626.1,1626.0,5.0]
[1744648011687,6.90357,1625.6,1625.5,0.4010058]
[1744648011920,6.9035742,1625.6,1625.5,0.4010058]
[1744648012089,0.7520042,1625.6,1625.5,0.4010058]
[1744648012290,4.2e-06,1625.6,1625.5,6.5529558]
[1744648012491,4.2e-06,1625.6,1625.5,0.4010058]
[1744648012944,4.2e-06,1625.6,1625.5,6.5529558]
[1744648013313,4.2e-06,1625.6,1625.5,0.4010058]
[1744648013598,6.1515742,1625.6,1625.5,0.4010058]
[1744648015236,4.2e-06,1625.6,1625.5,6.5529558]
[1744648015615,4.2e-06,1625.6,1625.5,7.82346838]
[1744648015928,4.2e-06,1625.6,1625.5,8.70868004]
[1744648016099,4.2e-06,1626.1,1625.9,6.15037]
[1744648016489,4.2e-06,1626.1,1625.9,6.15025]
[1744648017026,4.2e-06,1626.1,1625.8,6.92716]
[1744648017347,4.2e-06,1626.1,1625.9,6.15041]
[1744648017524,4.2e-06,1626.1,1626.0,6.15006]
[1744648018350,0.7520042,1626.5,1626.0,0.06149347]
[1744648018547,6.9002042,1626.5,1626.1,12.29888]
[1744648018700,11.01629726,1626.2,1626.1,8e-06]
[1744648018893,11.01629726,1626.2,1625.5,0.4010058]
[1744648018894,0.752,1625.9,1625.5,0.4010058]
[1744648019094,6.15157,1625.6,1625.5,0.4010058]
[1744648019334,6.90357,1625.6,1625.5,0.4010058]
[1744648019612,9.90357,1625.6,1625.5,0.4010058]
[1744648020008,12.12420142,1625.6,1625.5,0.4010058]
[1744648022249,13.12774769,1625.6,1625.5,5.8e-06]
[1744648022463,6.90508,1625.2,1625.1,0.05]
[1744648022753,6.90508,1625.2,1625.1,1e-05]
[1744648022754,19.9908802,1625.2,1625.1,1e-05]
[1744648023097,19.4408802,1625.2,1625.1,1e-05]
[1744648023293,9.9050842,1625.2,1625.1,1e-05]
[1744648025135,18.1370842,1625.2,1625.1,1e-05]
[1744648025430,18.68708,1625.2,1625.1,5.8e-06]
[1744648025732,18.13708,1625.2,1625.1,5.8e-06]
[1744648025931,20.566067,1625.2,1625.1,5.8e-06]
[1744648026120,21.42071249,1625.2,1625.1,5.8e-06]
[1744648026324,6.15687,1624.2,1624.1,0.05]
[1744648027221,15.29687,1624.2,1624.1,0.05]
[1744648027422,16.04887,1624.2,1624.1,0.05]
[1744648027609,18.885089,1624.2,1624.1,0.05]
[1744648027820,15.76936976,1624.2,1624.1,0.05]
[1744648028023,16.52136976,1624.2,1624.1,0.05]
[1744648028554,6.14,1624.2,1624.1,0.05]
[1744648029220,12.29687,1624.2,1624.1,0.05]
[1744648029417,6.14,1624.2,1624.1,0.05]
[1744648029614,12.29687,1624.2,1624.1,0.05]
[1744648029814,14.142218,1624.2,1624.1,0.05]
[1744648030015,17.142218,1624.2,1624.1,0.05]
[1744648030218,6.15801,1623.9,1623.8,0.4010058]
[1744648031352,15.29801,1623.9,1623.8,0.4010058]
[1744648031654,6.16067,1623.2,1623.0,0.8084]
[1744648031860,6.16067,1623.2,1622.6,15.93686777]
[1744648031861,16.0526642,1623.2,1622.6,7.70186777]
[1744648032006,13.0526642,1623.2,1622.7,6.16229]
[1744648032206,6.1399942,1623.2,1623.0,6.16133]
[1744648032443,12.3006642,1623.2,1623.0,0.8008]
[1744648032606,6.1399942,1623.2,1623.0,0.8008]
[1744648032802,13.0513042,1623.6,1623.0,0.8008]
[1744648033006,6.15953,1623.5,1623.0,0.8008]
[1744648033236,14.42802462,1623.6,1623.2,6.16054]
[1744648033410,6.15971,1623.5,1623.2,6.16054]
[1744648033611,6.15971,1623.5,1623.2,6.16055]
[1744648033838,12.31944,1623.5,1623.1,12.37186]
[1744648034038,6.16007,1623.4,1623.1,6.21089]
[1744648034208,6.15971,1623.5,1623.1,7.5282]
[1744648034538,6.16003,1623.4,1623.1,0.05]
[1744648035135,6.15953,1623.5,1623.1,0.05]
[1744648035337,6.16067,1623.2,1623.1,0.05]
[1744648035503,9.16067,1623.2,1623.1,0.05]
[1744648035835,10.692782,1623.2,1623.1,0.05]
[1744648036241,7.692782,1623.2,1623.1,0.05]
[1744648037305,6.16067,1623.2,1623.1,0.05]
[1744648038040,12.32108,1623.3,1623.1,0.05]
[1744648038246,6.16046,1623.3,1623.1,0.05]
[1744648038432,12.3211,1623.3,1623.1,0.05]
[1744648038812,6.16046,1623.3,1623.1,0.05]
[1744648039010,12.76133374,1623.4,1623.1,0.05]
[1744648039211,6.1399942,1623.7,1623.6,6.15915]
[1744648039413,6.1399942,1623.7,1623.6,6.92505]
[1744648040540,6.1399942,1623.7,1623.6,0.7659]
[1744648040728,6.1399942,1623.7,1623.6,6.92505]
[1744648041311,6.1399942,1624.1,1623.9,6.15796]
[1744648041614,6.1399942,1624.1,1623.9,12.31569]
[1744648041809,6.1399942,1624.1,1624.0,6.15763]
[1744648042644,6.1399942,1624.1,1624.0,8.175876]
[1744648042840,6.1399942,1624.1,1624.0,6.94433]
[1744648043040,6.1399942,1624.1,1623.8,6.94494]
[1744648043342,12.2973742,1624.1,1623.8,0.7867]
[1744648043543,6.15895,1623.7,1623.5,0.7867]
[1744648043748,6.1399942,1623.6,1623.2,0.7867]
[1744648044042,6.15971,1623.5,1623.2,0.7867]
[1744648044251,6.15971,1623.5,1623.1,6.21092]
[1744648044252,6.16006,1623.4,1623.1,6.21092]
[1744648044412,6.16004,1623.4,1623.1,6.21092]
[1744648044612,19.68944462,1623.5,1623.1,6.21091]
[1744648044849,12.2996142,1623.5,1623.1,0.05]
[1744648045018,12.2996142,1623.5,1623.1,6.21075]
[1744648045228,6.1399942,1623.5,1623.3,6.16015]
[1744648045824,6.1399942,1623.5,1623.3,6.16014]
[1744648046238,6.16067,1623.2,1623.1,0.05]
[1744648046771,6.16046,1623.3,1623.1,0.05]
[1744648047053,6.16067,1623.2,1623.1,0.05]
[1744648047451,12.3006642,1623.2,1623.1,0.05]
[1744648047822,6.1399942,1623.2,1623.1,0.05]
[1744648048247,6.1399942,1623.2,1623.1,6.21104]
[1744648048451,6.1399942,1623.2,1623.1,0.05]
[1744648048647,6.1399942,1623.2,1623.1,6.21104]
[1744648048850,6.1399942,1623.2,1623.1,7.02514]
[1744648049568,3.752,1623.7,1623.1,7.02514]
[1744648049569,6.1399942,1623.4,1623.1,13.18618]
[1744648049770,6.1399942,1623.4,1623.2,6.16062]
[1744648050140,6.1399942,1623.4,1623.1,7.02514]
[1744648050477,13.53019962,1623.4,1623.1,0.8641]
[1744648050626,13.53019962,1623.4,1623.1,0.05]
[1744648050627,13.52997962,1623.4,1623.1,0.05]
[1744648050822,6.91245,1623.3,1623.1,0.05]
[1744648051069,6.16067,1623.2,1623.1,0.05]
[1744648051572,6.16045,1623.3,1623.1,0.05]
[1744648051773,8.12942296,1623.3,1623.1,0.05]
[1744648052073,6.16067,1623.2,1623.1,0.05]
[1744648052277,12.3000642,1623.4,1623.1,0.05]
[1744648052580,12.3000642,1623.4,1623.2,6.16064]
[1744648052581,6.1399942,1623.4,1623.2,6.16064]
[1744648053461,6.1399942,1623.4,1623.1,12.37204]
[1744648054028,12.2999542,1623.4,1623.1,6.21102]
[1744648054280,18.4600742,1623.4,1623.1,6.21102]
[1744648054786,12.2999542,1623.4,1623.1,6.21102]
[1744648055089,6.1399942,1623.4,1623.2,6.16052]
[1744648055381,6.1399942,1623.4,1623.3,6.16029]
[1744648056135,6.1399942,1623.4,1623.2,12.32104]
[1744648056343,6.1399942,1623.4,1623.2,6.16052]
[1744648056679,6.1399942,1623.4,1623.3,6.16029]
[1744648057383,6.1399942,1623.4,1623.2,6.16052]
[1744648057586,6.1399942,1623.4,1623.2,12.32106]
[1744648057938,6.1399942,1623.4,1623.2,6.16052]
[1744648058487,6.1399942,1623.4,1623.1,0.05]
[1744648058650,12.3000242,1623.4,1623.1,0.05]
[1744648058856,6.16067,1623.2,1623.1,0.05]
[1744648059395,0.752,1623.3,1623.1,0.05]
[1744648059540,9.1605,1623.3,1623.1,0.05]
[1744648059740,18.4600542,1623.4,1623.1,6.21092]
[1744648060041,20.38129962,1623.4,1623.1,6.21092]
[1744648060262,12.32099,1623.3,1623.1,0.05]
[1744648060470,6.16067,1623.2,1623.1,0.05]
[1744648061552,3.0,1623.3,1623.1,0.05]
[1744648061758,9.16043,1623.3,1623.1,0.05]
[1744648061959,6.16067,1623.2,1623.1,0.05]
[1744648062677,12.3006642,1623.2,1623.1,0.05]
[1744648063675,16.6026642,1623.2,1623.1,0.05]
[1744648064347,16.0526642,1623.2,1623.1,0.05]
[1744648064681,19.88503472,1623.2,1623.1,0.05]
[1744648065267,20.89546787,1623.2,1623.1,0.05]
[1744648065783,20.34546787,1623.2,1623.1,0.05]
[1744648065980,14.18479787,1623.2,1623.1,0.05]
[1744648066182,6.60042735,1623.2,1623.1,0.05]
[1744648066361,12.76109735,1623.2,1623.1,0.05]
[1744648067968,15.76109735,1623.2,1623.1,0.05]
[1744648076690,9.60042735,1623.2,1623.1,0.05]
[1744648076919,15.76109735,1623.2,1623.1,0.05]
[1744648077072,18.02845009,1623.2,1623.1,0.05]
[1744648077578,12.76109735,1623.2,1623.1,0.05]
[1744648078694,6.60042735,1623.2,1623.1,0.05]
[1744648078899,12.76109735,1623.2,1623.1,0.05]
[1744648081599,15.76109735,1623.2,1623.1,0.05]
[1744648081776,16.51309735,1623.2,1623.1,0.05]
[1744648081978,19.39649709,1623.2,1623.1,0.05]
[1744648082194,6.60042735,1623.2,1623.1,0.05]
[1744648082388,12.76109735,1623.2,1623.1,0.05]
[1744648083270,6.60042735,1623.2,1623.1,0.05]
[1744648084197,3.94004656,1623.9,1623.2,0.7771]
[1744648084397,3.94004656,1623.9,1623.6,0.7771]
[1744648084398,10.09818656,1623.9,1623.6,0.7771]
[1744648084609,7.16823866,1623.8,1623.6,0.7771]
[1744648084811,16.25655656,1623.9,1623.6,0.7771]
[1744648084998,10.55423267,1623.9,1623.6,0.7771]
[1744648085202,6.15854,1623.8,1623.6,0.7771]
[1744648085601,12.31728,1623.8,1623.6,0.7771]
[1744648085916,6.15854,1623.8,1623.5,6.15947]
[1744648086130,6.15934,1623.6,1623.3,12.32042]
[1744648086277,6.15883,1623.7,1623.4,6.1598]
[1744648086912,6.15937,1623.6,1623.2,13.13366]
[1744648087117,6.91122,1623.6,1623.2,0.8124]
[1744648087291,6.16067,1623.2,1623.1,0.05]
[1744648087625,12.3006642,1623.2,1623.1,0.05]
[1744648087801,12.76189229,1623.2,1623.1,0.05]
[1744648088391,0.55,1622.9,1622.2,1.1747058]
[1744648088620,6.16322,1622.6,1622.2,7.3390158]
[1744648088924,6.16408,1622.3,1622.2,0.4010058]
[1744648089122,18.67608,1622.3,1622.2,5.8e-06]
[1744648089485,19.1344459,1622.3,1622.2,5.8e-06]
[1744648090013,9.71446,1622.2,1621.8,7.70186777]
[1744648090192,6.71674,1621.6,1621.5,9.07970443]
[1744648090393,22.05824633,1621.6,1621.5,9.07970443]
[1744648090617,17.92774,1621.6,1621.5,9.07970443]
[1744648091293,18.67974,1621.6,1621.5,4.43e-06]
[1744648091521,21.59146026,1621.6,1621.5,4.43e-06]
[1744648091726,10.38841616,1621.6,1621.1,0.05]
[1744648091899,3.0,1621.9,1621.2,0.7773]
[1744648092103,3.0,1621.7,1621.4,6.1675]
[1744648092427,0.47203055,1621.9,1621.4,6.16724]
[1744648092623,8.963,1622.0,1621.2,0.7773]
[1744648092924,9.16578,1621.9,1621.5,6.16712]
[1744648093322,3.0,1621.9,1621.5,12.33424]
[1744648093524,9.16563,1621.9,1621.5,6.16712]
[1744648093828,3.4503333,1621.9,1621.5,6.16712]
[1744648094125,8.211,1622.0,1621.8,12.3314]
[1744648094295,8.211,1622.0,1621.7,6.16632]
[1744648094690,1.23258,1622.6,1621.8,0.616632]
[1744648094907,6.16423,1622.3,1621.9,6.16535]
[1744648095222,0.45702713,1622.3,1621.8,6.16568]
[1744648095386,6.16423,1622.3,1621.9,6.16559]
[1744648095587,6.16399,1622.4,1621.9,12.33099]
[1744648095828,3.752,1622.5,1622.1,6.16453]
[1744648096047,6.16296,1622.6,1622.2,6.16432]
[1744648096341,6.1399942,1622.5,1622.0,6.1652]
[1744648096492,6.60173009,1622.8,1622.5,6.16313]
[1744648096690,6.1399942,1622.8,1622.4,6.1637]
[1744648096914,5.18948286,1623.1,1622.9,6.16146]
[1744648097224,5.18948286,1623.1,1623.0,6.16142]
[1744648098210,5.18948286,1623.1,1622.9,6.16146]
[1744648099023,5.18948286,1623.1,1623.0,6.16142]
[1744648099410,5.18948286,1623.1,1623.0,6.22303338]
[1744648099615,0.01325998,1623.1,1623.0,7.39986934]
[1744648099804,9.98e-06,1623.1,1623.0,8.28837385]
[1744648100009,9.98e-06,1623.1,1623.0,8.22676934]
[1744648100730,9.98e-06,1623.1,1623.0,8.28837332]
[1744648101354,9.98e-06,1623.1,1623.0,11.77676934]
[1744648101517,9.98e-06,1623.1,1623.0,12.30856603]
[1744648101702,8.213,1623.9,1623.8,6.15839]
[1744648101902,9.07958809,1623.9,1623.8,6.15839]
[1744648102116,0.86658809,1623.9,1623.7,6.15867]
[1744648102435,0.752,1624.2,1623.5,0.8292]
[1744648102635,14.3677,1624.3,1623.9,12.31551]
[1744648102835,3.0,1624.2,1623.9,6.15772]
[1744648103138,20.52445,1624.3,1623.9,6.15772]
[1744648103343,2.052445,1624.2,1624.0,6.15741]
[1744648103543,8.211,1624.3,1623.9,6.15794]
[1744648103544,20.52462,1624.3,1623.9,6.15794]
[1744648103857,9.15689,1624.2,1623.6,6.15903]
[1744648104056,12.31564,1624.0,1623.6,6.15903]
[1744648104261,12.31636,1623.9,1623.5,6.98872]
[1744648104411,9.15768,1624.0,1623.6,6.15896]
[1744648104612,0.915768,1623.9,1623.5,0.8292]
[1744648104814,3.0,1624.2,1623.9,6.15785]
[1744648105053,6.15662,1624.3,1623.9,6.15785]
[1744648105229,14.87349958,1624.4,1623.9,6.15785]
[1744648105428,14.87349958,1624.4,1623.7,6.15867]
[1744648105429,6.1569,1624.2,1623.8,6.15836]
[1744648105650,0.61569,1624.1,1623.8,6.15836]
[1744648105947,6.77301,1624.1,1623.6,6.15903]
[1744648106241,6.77303,1624.1,1623.7,6.15858]
[1744648106547,6.77303,1624.1,1623.7,12.31723]
[1744648106865,6.15822,1623.9,1623.5,6.98867]
[1744648107065,0.615822,1623.8,1623.5,13.14805]
[1744648107359,6.15697,1624.2,1623.8,6.15812]
[1744648107946,12.2969642,1624.2,1623.8,6.15812]
[1744648108112,6.1399942,1624.2,1623.8,6.15812]
[1744648108312,6.1399942,1624.2,1624.0,6.15726]
[1744648108748,6.1399942,1624.2,1624.0,12.31474]
[1744648109149,6.1399942,1624.2,1624.0,6.15726]
[1744648109315,6.1399942,1624.2,1624.1,6.15725]
[1744648110254,0.05,1624.4,1624.3,6.15649]
[1744648110446,0.05,1624.4,1624.3,0.06155641]
[1744648110651,0.05,1624.4,1624.2,6.1567]
[1744648110879,0.05,1624.4,1624.3,6.15649]
[1744648111900,0.05,1624.4,1624.3,6.21804827]
[1744648112067,0.05,1624.4,1624.3,6.15649]
[1744648112452,0.05,1624.4,1624.2,6.1567]
[1744648112690,6.826845,1624.4,1624.1,6.15711]
[1744648112848,0.670575,1624.4,1624.1,6.1571]
[1744648113056,6.826725,1624.4,1624.1,6.1571]
[1744648113585,6.15662,1624.3,1624.0,6.92343]
[1744648113759,12.31402,1624.2,1623.9,14.36686]
[1744648113960,1.231402,1624.1,1623.8,0.7632]
[1744648114171,6.15659,1624.3,1624.0,6.15743]
[1744648114477,6.15715,1624.2,1623.8,13.07976]
[1744648114687,6.1399942,1624.3,1623.9,6.15785]
[1744648114849,6.1399942,1624.3,1623.8,6.92152]
[1744648115055,6.15763,1624.0,1623.8,0.7632]
[1744648115310,12.932043,1623.9,1623.6,6.93701]
[1744648115457,6.773773,1623.9,1623.6,6.93709]
[1744648115653,6.773773,1623.9,1623.6,0.778]
[1744648116007,6.1399942,1624.2,1623.7,10.42954263]
[1744648116154,6.1399942,1624.2,1623.9,6.15766]
[1744648116509,6.1399942,1624.2,1624.1,6.15725]
[1744648116669,0.670575,1624.4,1624.1,6.15725]
[1744648116670,0.05,1624.4,1624.3,6.15649]
[1744648116995,0.05,1624.4,1624.1,6.94362]
[1744648117150,0.670589,1624.4,1624.2,6.15663]
[1744648117353,0.05,1624.4,1624.2,6.15663]
[1744648117803,6.20623,1624.4,1624.1,0.7865]
[1744648117985,6.20623,1624.4,1623.8,6.15838]
[1744648117986,6.15682,1624.3,1623.9,6.15795]
[1744648118301,6.15682,1624.3,1624.0,6.15752]
[1744648118485,0.615682,1624.2,1624.0,6.15752]
[1744648118687,0.615682,1624.2,1623.9,6.15796]
[1744648118871,6.772672,1624.2,1623.9,6.15796]
[1744648119078,6.7556762,1624.2,1623.6,6.15909]
[1744648119415,6.7556762,1624.2,1623.1,0.2]
[1744648119416,6.15851,1623.8,1623.4,6.15976]
[1744648119573,6.1399942,1623.8,1623.5,6.15939]
[1744648119758,12.2984142,1623.8,1623.4,6.15976]
[1744648119959,6.15878,1623.7,1623.4,6.15976]
[1744648120171,7.98564462,1623.8,1623.3,0.8179]
[1744648120384,6.16001,1623.4,1623.1,6.97889]
[1744648120589,6.15969,1623.5,1623.1,13.13983]
[1744648121099,6.15969,1623.5,1623.1,6.97879]
[1744648121303,6.16017,1623.4,1623.1,6.97879]
[1744648121503,6.1399942,1623.6,1623.1,0.8179]
[1744648121714,6.1399942,1623.6,1623.5,6.15953]
[1744648121860,1.84565042,1623.8,1623.5,13.12603]
[1744648121861,7.98564462,1623.8,1623.5,13.12603]
[1744648122097,6.15892,1623.7,1623.5,0.8072]
[1744648122608,6.15882,1623.7,1623.4,6.15972]
[1744648122892,6.15882,1623.7,1623.4,6.15991]
[1744648123090,6.15882,1623.7,1623.3,12.3203]
[1744648123395,6.15915,1623.6,1623.0,6.16131]
[1744648123612,6.16055,1623.3,1622.9,21.26458]
[1744648123772,6.16198,1622.9,1622.6,0.7532]
[1744648124106,6.1399942,1623.2,1623.0,6.16126]
[1744648124263,6.1399942,1623.2,1623.1,6.16104]
[1744648124462,0.752,1623.6,1623.2,6.16067]
[1744648124795,0.752,1623.6,1623.3,6.22180679]
[1744648124796,9.84845942,1623.6,1623.3,6.22180679]
[1744648124978,3.68919942,1623.6,1623.3,6.16012]
[1744648125357,6.1399942,1623.7,1623.1,6.16102]
[1744648125562,6.1399942,1623.7,1623.0,6.16142]
[1744648125810,6.16016,1623.4,1623.1,12.322]
[1744648126008,6.16016,1623.4,1623.1,6.161]
[1744648126307,13.552305,1623.4,1623.0,12.32267]
[1744648126471,6.15962,1623.5,1623.1,6.16078]